[Event "Early-Titled-Tuesday-Blitz-January-30-2024"]
[Site "Chess.com"]
[Date "2024.01.30"]
[Round "2"]
[White "Artyom_ChessMate"]
[Black "WiktoriaPOL"]
[Result "1-0"]
[WhiteElo "2522"]
[BlackElo "2254"]
[TimeControl "180+1"]
[EndTime "8:17:18 PST"]
[Termination "Artyom_ChessMate won by resignation"]

1. e4 {[%clk 0:02:58.4]} 1... c5 {[%clk 0:02:59.5]} 2. Nc3 {[%clk 0:02:55.1]}
2... Nc6 {[%clk 0:02:57.5]} 3. Bb5 {[%clk 0:02:54]} 3... Nd4 {[%clk 0:02:57.2]}
4. Nf3 {[%clk 0:02:53]} 4... g6 {[%clk 0:02:56.4]} 5. O-O {[%clk 0:02:45]} 5...
Bg7 {[%clk 0:02:55.7]} 6. Nxd4 {[%clk 0:02:45.2]} 6... cxd4 {[%clk 0:02:55.4]}
7. Ne2 {[%clk 0:02:45.8]} 7... a6 {[%clk 0:02:54.9]} 8. Ba4 {[%clk 0:02:44.5]}
8... b5 {[%clk 0:02:47.8]} 9. Bb3 {[%clk 0:02:44.5]} 9... Bb7 {[%clk 0:02:47.6]}
10. d3 {[%clk 0:02:44.8]} 10... d5 {[%clk 0:02:46.7]} 11. f3 {[%clk 0:02:42.5]}
11... e6 {[%clk 0:02:42.5]} 12. Bf4 {[%clk 0:02:37.8]} 12... Ne7 {[%clk
0:02:41.8]} 13. Qd2 {[%clk 0:02:37.3]} 13... O-O {[%clk 0:02:37.2]} 14. Bh6
{[%clk 0:02:35.7]} 14... a5 {[%clk 0:02:26.9]} 15. a4 {[%clk 0:02:34.6]} 15...
b4 {[%clk 0:02:26.7]} 16. Bxg7 {[%clk 0:02:34.1]} 16... Kxg7 {[%clk 0:02:26.6]}
17. Qf4 {[%clk 0:02:33.4]} 17... dxe4 {[%clk 0:02:21.8]} 18. fxe4 {[%clk
0:02:32.5]} 18... Nc6 {[%clk 0:02:16]} 19. h4 {[%clk 0:02:29.3]} 19... e5 {[%clk
0:02:12.8]} 20. Qg3 {[%clk 0:02:26.6]} 20... Bc8 {[%clk 0:02:02.9]} 21. Rf2
{[%clk 0:02:19.5]} 21... Qe7 {[%clk 0:02:00.2]} 22. Raf1 {[%clk 0:02:18.9]}
22... Be6 {[%clk 0:01:59.6]} 23. Bd5 {[%clk 0:02:15.6]} 23... Qd7 {[%clk
0:01:51]} 24. Bxc6 {[%clk 0:02:04.5]} 24... Qxc6 {[%clk 0:01:50.7]} 25. Qxe5+
{[%clk 0:02:05.2]} 25... Kg8 {[%clk 0:01:46.5]} 26. Nxd4 {[%clk 0:02:05.2]}
26... Qd7 {[%clk 0:01:39.2]} 27. Rf6 {[%clk 0:01:59.1]} 27... Qa7 {[%clk
0:01:23.4]} 28. Kh1 {[%clk 0:01:54.6]} 28... Rfe8 {[%clk 0:01:07.6]} 29. Nxe6
{[%clk 0:01:52.7]} 29... fxe6 {[%clk 0:01:05.8]} 30. Rxe6 {[%clk 0:01:47.5]}
30... Rf8 {[%clk 0:00:42.4]} 31. Ref6 {[%clk 0:01:39.9]} 31... Qe3 {[%clk
0:00:22.3]} 32. Qe6+ {[%clk 0:01:37.4]} 32... Kg7 {[%clk 0:00:21.5]} 33. Qe7+
{[%clk 0:01:37.7]} 33... Kh6 {[%clk 0:00:17.5]} 34. Rxf8 {[%clk 0:01:36]} 1-0

[Event "Early-Titled-Tuesday-Blitz-January-30-2024"]
[Site "Chess.com"]
[Date "2024.01.30"]
[Round "2"]
[White "kamilianin235"]
[Black "sofaceindisguise"]
[Result "0-1"]
[WhiteElo "2509"]
[BlackElo "2780"]
[TimeControl "180+1"]
[EndTime "8:17:31 PST"]
[Termination "sofaceindisguise won by resignation"]

1. e4 {[%clk 0:03:00.9]} 1... c5 {[%clk 0:03:00.3]} 2. Nf3 {[%clk 0:03:00.5]}
2... e6 {[%clk 0:03:00.8]} 3. d4 {[%clk 0:03:00.5]} 3... cxd4 {[%clk 0:03:01.7]}
4. Nxd4 {[%clk 0:03:00.4]} 4... a6 {[%clk 0:03:02.3]} 5. c4 {[%clk 0:03:00]}
5... Qc7 {[%clk 0:03:02.9]} 6. Nc3 {[%clk 0:02:45.1]} 6... Nf6 {[%clk
0:03:01.9]} 7. Bd3 {[%clk 0:02:43]} 7... Bb4 {[%clk 0:03:02]} 8. Nc2 {[%clk
0:02:35.2]} 8... Bxc3+ {[%clk 0:03:01.9]} 9. bxc3 {[%clk 0:02:34.3]} 9... d6
{[%clk 0:03:00.4]} 10. Ba3 {[%clk 0:02:29.3]} 10... Nbd7 {[%clk 0:02:57.7]} 11.
O-O {[%clk 0:02:28]} 11... Nc5 {[%clk 0:02:57.6]} 12. Ne3 {[%clk 0:02:20.6]}
12... O-O {[%clk 0:02:57]} 13. f3 {[%clk 0:02:15.3]} 13... Bd7 {[%clk
0:02:51.1]} 14. Bc2 {[%clk 0:02:08]} 14... Rfc8 {[%clk 0:02:46.4]} 15. Qd4
{[%clk 0:02:06.9]} 15... e5 {[%clk 0:02:45.8]} 16. Qd2 {[%clk 0:02:04.6]} 16...
Be6 {[%clk 0:02:46.3]} 17. Rfd1 {[%clk 0:02:01.2]} 17... Rd8 {[%clk 0:02:44.9]}
18. Rab1 {[%clk 0:01:26.6]} 18... Rac8 {[%clk 0:02:44.7]} 19. Bb4 {[%clk
0:01:23.4]} 19... h6 {[%clk 0:02:41.7]} 20. g4 {[%clk 0:01:20.2]} 20... Nh7
{[%clk 0:02:38.5]} 21. h4 {[%clk 0:01:19.2]} 21... Nf8 {[%clk 0:02:37.3]} 22. h5
{[%clk 0:01:15.7]} 22... Nh7 {[%clk 0:02:37.3]} 23. Nf5 {[%clk 0:01:15.1]} 23...
Bxf5 {[%clk 0:02:33.4]} 24. gxf5 {[%clk 0:01:09.5]} 24... Ng5 {[%clk 0:02:32.1]}
25. Kg2 {[%clk 0:01:06.3]} 25... Nh7 {[%clk 0:02:15.4]} 26. Kh2 {[%clk
0:01:00.8]} 26... Nf6 {[%clk 0:02:15.6]} 27. Rg1 {[%clk 0:00:59.4]} 27... Kh7
{[%clk 0:02:15.2]} 28. Qg2 {[%clk 0:00:56.6]} 28... Rg8 {[%clk 0:02:15.7]} 29.
Bxc5 {[%clk 0:00:53.5]} 29... Qxc5 {[%clk 0:02:15.7]} 30. Rxb7 {[%clk
0:00:53.4]} 30... Rc7 {[%clk 0:02:16]} 31. Rxc7 {[%clk 0:00:49.7]} 31... Qxc7
{[%clk 0:02:16.9]} 32. Bb3 {[%clk 0:00:46]} 32... Nxh5 {[%clk 0:02:17]} 33. Qg4
{[%clk 0:00:42.6]} 33... Nf4 {[%clk 0:02:16.8]} 34. Qh4 {[%clk 0:00:36.8]} 34...
Qc5 {[%clk 0:02:06.5]} 35. Rd1 {[%clk 0:00:30.7]} 35... g5 {[%clk 0:02:02.7]}
36. Qe1 {[%clk 0:00:23.1]} 36... g4 {[%clk 0:02:01.4]} 37. Qg1 {[%clk
0:00:18.1]} 37... g3+ {[%clk 0:01:59]} 38. Kh1 {[%clk 0:00:17.9]} 38... Qc7
{[%clk 0:01:54.4]} 39. Rd2 {[%clk 0:00:09.3]} 39... Qe7 {[%clk 0:01:54.1]} 0-1

[Event "Early-Titled-Tuesday-Blitz-January-30-2024"]
[Site "Chess.com"]
[Date "2024.01.30"]
[Round "2"]
[White "Jospem"]
[Black "AldokhinIvan"]
[Result "1-0"]
[WhiteElo "3048"]
[BlackElo "2633"]
[TimeControl "180+1"]
[EndTime "8:17:33 PST"]
[Termination "Jospem won by resignation"]

1. e4 {[%clk 0:03:00.9]} 1... c5 {[%clk 0:02:57.7]} 2. Nf3 {[%clk 0:03:00.9]}
2... e6 {[%clk 0:02:58.1]} 3. c3 {[%clk 0:03:01.4]} 3... Nf6 {[%clk 0:02:57.4]}
4. Bd3 {[%clk 0:03:01.2]} 4... d5 {[%clk 0:02:57.2]} 5. e5 {[%clk 0:03:01.9]}
5... Nfd7 {[%clk 0:02:57.7]} 6. Bc2 {[%clk 0:03:02.6]} 6... Nc6 {[%clk
0:02:58.2]} 7. d4 {[%clk 0:03:03.3]} 7... b5 {[%clk 0:02:58.2]} 8. O-O {[%clk
0:03:03.3]} 8... a5 {[%clk 0:02:58.9]} 9. Re1 {[%clk 0:03:02.8]} 9... Ba6 {[%clk
0:02:57.9]} 10. Nbd2 {[%clk 0:02:57.1]} 10... cxd4 {[%clk 0:02:51.9]} 11. cxd4
{[%clk 0:02:56.2]} 11... Be7 {[%clk 0:02:48.2]} 12. Nf1 {[%clk 0:02:56.3]} 12...
Nb6 {[%clk 0:02:39.2]} 13. Ng3 {[%clk 0:02:56.1]} 13... a4 {[%clk 0:02:30.9]}
14. Nh5 {[%clk 0:02:54.4]} 14... O-O {[%clk 0:02:19.1]} 15. h4 {[%clk
0:02:27.8]} 15... b4 {[%clk 0:02:02.1]} 16. Bg5 {[%clk 0:02:11.8]} 16... h6
{[%clk 0:01:25.4]} 17. Bxh6 {[%clk 0:01:54.9]} 17... gxh6 {[%clk 0:01:02.3]} 18.
Qd2 {[%clk 0:01:54.7]} 18... f5 {[%clk 0:01:02.4]} 19. exf6 {[%clk 0:01:55.4]}
19... Rxf6 {[%clk 0:01:01]} 20. Nxf6+ {[%clk 0:01:52.2]} 20... Bxf6 {[%clk
0:01:01.9]} 21. Rxe6 {[%clk 0:01:49.1]} 21... Rc8 {[%clk 0:00:51.1]} 22. Qxh6
{[%clk 0:01:47.6]} 22... Bg7 {[%clk 0:00:49.5]} 23. Qh7+ {[%clk 0:01:37.2]}
23... Kf8 {[%clk 0:00:49.4]} 24. Rae1 {[%clk 0:01:19.6]} 24... Nd7 {[%clk
0:00:35.8]} 25. Rg6 {[%clk 0:01:09.8]} 1-0

[Event "Early-Titled-Tuesday-Blitz-January-30-2024"]
[Site "Chess.com"]
[Date "2024.01.30"]
[Round "2"]
[White "jk13"]
[Black "pirulillo"]
[Result "1-0"]
[WhiteElo "2699"]
[BlackElo "2268"]
[TimeControl "180+1"]
[EndTime "8:17:33 PST"]
[Termination "jk13 won by resignation"]

1. e4 {[%clk 0:03:00.9]} 1... c5 {[%clk 0:02:59.6]} 2. c3 {[%clk 0:03:00.8]}
2... Nf6 {[%clk 0:02:55.6]} 3. e5 {[%clk 0:03:01.1]} 3... Nd5 {[%clk 0:02:55.8]}
4. Bc4 {[%clk 0:03:01.7]} 4... Nb6 {[%clk 0:02:54]} 5. Bb3 {[%clk 0:02:57.4]}
5... Nc6 {[%clk 0:02:49.7]} 6. Nf3 {[%clk 0:02:56.9]} 6... d5 {[%clk 0:02:46.7]}
7. exd6 {[%clk 0:02:57.2]} 7... Qxd6 {[%clk 0:02:46.3]} 8. O-O {[%clk
0:02:57.7]} 8... e6 {[%clk 0:02:34.3]} 9. d4 {[%clk 0:02:52.8]} 9... cxd4 {[%clk
0:02:32.3]} 10. cxd4 {[%clk 0:02:53.3]} 10... Be7 {[%clk 0:02:30.6]} 11. Nc3
{[%clk 0:02:53.8]} 11... O-O {[%clk 0:02:29.7]} 12. Qd3 {[%clk 0:02:48.3]} 12...
Nb4 {[%clk 0:02:24.6]} 13. Qe4 {[%clk 0:02:47.7]} 13... Bd7 {[%clk 0:02:07.9]}
14. Bf4 {[%clk 0:02:22]} 14... Qc6 {[%clk 0:01:57.2]} 15. Qe2 {[%clk 0:02:22.5]}
15... N4d5 {[%clk 0:01:50.9]} 16. Nxd5 {[%clk 0:02:11.1]} 16... Nxd5 {[%clk
0:01:51.8]} 17. Bg3 {[%clk 0:02:11.7]} 17... Bf6 {[%clk 0:01:21.9]} 18. Ne5
{[%clk 0:01:57.2]} 18... Bxe5 {[%clk 0:01:08.5]} 19. dxe5 {[%clk 0:01:52.6]}
19... Rac8 {[%clk 0:00:59.9]} 20. Rfd1 {[%clk 0:01:48.8]} 20... Qb5 {[%clk
0:00:31.8]} 21. Qg4 {[%clk 0:01:46.6]} 21... Bc6 {[%clk 0:00:25.5]} 22. Bh4
{[%clk 0:01:36.9]} 22... Kh8 {[%clk 0:00:18.8]} 23. Rac1 {[%clk 0:01:31.4]}
23... Qb6 {[%clk 0:00:09.2]} 24. Bg5 {[%clk 0:01:20.1]} 24... Bb5 {[%clk
0:00:08.9]} 25. Rxc8 {[%clk 0:01:15.7]} 25... Rxc8 {[%clk 0:00:09.8]} 26. Bxd5
{[%clk 0:01:15.7]} 26... exd5 {[%clk 0:00:09.8]} 27. Qxc8+ {[%clk 0:01:15]} 1-0

[Event "Early-Titled-Tuesday-Blitz-January-30-2024"]
[Site "Chess.com"]
[Date "2024.01.30"]
[Round "2"]
[White "Dinosaurio_1975"]
[Black "ViIIagra"]
[Result "0-1"]
[WhiteElo "2606"]
[BlackElo "2950"]
[TimeControl "180+1"]
[EndTime "8:17:41 PST"]
[Termination "ViIIagra won on time"]

1. e4 {[%clk 0:03:00.9]} 1... Nc6 {[%clk 0:02:59]} 2. d4 {[%clk 0:02:59.9]} 2...
d5 {[%clk 0:02:59.2]} 3. e5 {[%clk 0:02:57.3]} 3... Bf5 {[%clk 0:02:58.2]} 4. c3
{[%clk 0:02:56.4]} 4... e6 {[%clk 0:02:55.2]} 5. Nf3 {[%clk 0:02:54.7]} 5... f6
{[%clk 0:02:52.9]} 6. Bd3 {[%clk 0:02:53.2]} 6... Bxd3 {[%clk 0:02:47.7]} 7.
Qxd3 {[%clk 0:02:54.1]} 7... fxe5 {[%clk 0:02:48.3]} 8. dxe5 {[%clk 0:02:47.5]}
8... Qd7 {[%clk 0:02:38.1]} 9. O-O {[%clk 0:02:43.9]} 9... Nge7 {[%clk
0:02:33.3]} 10. b4 {[%clk 0:02:30]} 10... Ng6 {[%clk 0:02:32.2]} 11. Re1 {[%clk
0:02:29.9]} 11... Be7 {[%clk 0:02:32.1]} 12. b5 {[%clk 0:02:11.4]} 12... Na5
{[%clk 0:02:31.7]} 13. g3 {[%clk 0:01:49.4]} 13... O-O {[%clk 0:02:24.2]} 14. h4
{[%clk 0:01:49.3]} 14... Bc5 {[%clk 0:02:20]} 15. Ba3 {[%clk 0:01:36.7]} 15...
Rxf3 {[%clk 0:02:10.8]} 16. Qxf3 {[%clk 0:01:30.1]} 16... Rf8 {[%clk 0:02:11.4]}
17. Qd1 {[%clk 0:01:06.9]} 17... Bxf2+ {[%clk 0:02:06.4]} 18. Kg2 {[%clk
0:01:06.7]} 18... Bxe1 {[%clk 0:02:01.3]} 19. Bxf8 {[%clk 0:01:05.3]} 19... Bxg3
{[%clk 0:02:01.2]} 20. Kxg3 {[%clk 0:01:02.6]} 20... Nxf8 {[%clk 0:02:01.6]} 21.
Qe2 {[%clk 0:00:33.5]} 21... Ng6 {[%clk 0:01:59.7]} 22. h5 {[%clk 0:00:32.8]}
22... Ne7 {[%clk 0:01:59.8]} 23. Nd2 {[%clk 0:00:28]} 23... Nf5+ {[%clk
0:01:59.5]} 24. Kh3 {[%clk 0:00:22.7]} 24... Qe7 {[%clk 0:01:45.7]} 25. Qg4
{[%clk 0:00:22.3]} 25... Qc5 {[%clk 0:01:42.3]} 26. Qf3 {[%clk 0:00:20.6]} 26...
Nc4 {[%clk 0:01:40.9]} 27. Nb3 {[%clk 0:00:15.6]} 27... Qe7 {[%clk 0:01:38.2]}
28. Qf4 {[%clk 0:00:11.1]} 28... Qf7 {[%clk 0:01:38.4]} 29. Qg5 {[%clk
0:00:07.8]} 29... h6 {[%clk 0:01:38.7]} 30. Qd8+ {[%clk 0:00:07.5]} 30... Kh7
{[%clk 0:01:39]} 31. Rg1 {[%clk 0:00:04.9]} 31... Qxh5+ {[%clk 0:01:38.9]} 32.
Kg2 {[%clk 0:00:05.4]} 32... Nce3+ {[%clk 0:01:29.6]} 33. Kf2 {[%clk 0:00:04.8]}
33... Qh2+ {[%clk 0:01:30.1]} 0-1

[Event "Early-Titled-Tuesday-Blitz-January-30-2024"]
[Site "Chess.com"]
[Date "2024.01.30"]
[Round "2"]
[White "nihalsarin"]
[Black "Martial2008"]
[Result "1-0"]
[WhiteElo "3180"]
[BlackElo "2677"]
[TimeControl "180+1"]
[EndTime "8:17:43 PST"]
[Termination "nihalsarin won by resignation"]

1. d4 {[%clk 0:03:00.9]} 1... Nf6 {[%clk 0:02:55.4]} 2. c4 {[%clk 0:03:00.9]}
2... e6 {[%clk 0:02:53.2]} 3. Nf3 {[%clk 0:02:56.4]} 3... d5 {[%clk 0:02:52.8]}
4. g3 {[%clk 0:02:56.6]} 4... Bb4+ {[%clk 0:02:50.7]} 5. Bd2 {[%clk 0:02:55.1]}
5... Be7 {[%clk 0:02:50.6]} 6. Bg2 {[%clk 0:02:55.1]} 6... Nbd7 {[%clk
0:02:46.1]} 7. Qc2 {[%clk 0:02:48.6]} 7... c6 {[%clk 0:02:39.3]} 8. h4 {[%clk
0:02:47.6]} 8... Ne4 {[%clk 0:02:38.5]} 9. Nc3 {[%clk 0:02:44.5]} 9... Nxd2
{[%clk 0:02:37.2]} 10. Nxd2 {[%clk 0:02:39.4]} 10... O-O {[%clk 0:02:37.1]} 11.
O-O {[%clk 0:02:39]} 11... f5 {[%clk 0:02:37]} 12. e3 {[%clk 0:02:36.5]} 12...
Nf6 {[%clk 0:02:37]} 13. Rab1 {[%clk 0:02:36.3]} 13... Ne4 {[%clk 0:02:34.9]}
14. b4 {[%clk 0:02:36.4]} 14... Rf6 {[%clk 0:02:30]} 15. b5 {[%clk 0:02:34]}
15... Rg6 {[%clk 0:02:27.1]} 16. Nf3 {[%clk 0:02:25.3]} 16... Rh6 {[%clk
0:02:13.4]} 17. Ne2 {[%clk 0:02:21.4]} 17... g5 {[%clk 0:02:13.4]} 18. hxg5
{[%clk 0:02:19.3]} 18... Bxg5 {[%clk 0:02:13.4]} 19. bxc6 {[%clk 0:02:12.6]}
19... bxc6 {[%clk 0:02:13.4]} 20. cxd5 {[%clk 0:02:13.3]} 20... cxd5 {[%clk
0:02:13.7]} 21. Nxg5 {[%clk 0:02:13.2]} 21... Nxg5 {[%clk 0:02:10.9]} 22. Qc6
{[%clk 0:02:06.2]} 22... Bd7 {[%clk 0:02:10.5]} 23. Qd6 {[%clk 0:02:06.7]} 23...
Ne4 {[%clk 0:02:04.4]} 24. Bxe4 {[%clk 0:01:57.9]} 24... fxe4 {[%clk 0:02:05.3]}
25. Rb7 {[%clk 0:01:53.8]} 25... Be8 {[%clk 0:02:00.1]} 26. Qxd8 {[%clk
0:01:51.8]} 26... Rxd8 {[%clk 0:02:01]} 27. Nf4 {[%clk 0:01:47.5]} 27... Bh5
{[%clk 0:01:57.3]} 28. Nxh5 {[%clk 0:01:33.4]} 28... Rxh5 {[%clk 0:01:58.2]} 29.
Rxa7 {[%clk 0:01:34.2]} 29... Rf5 {[%clk 0:01:55.2]} 30. a4 {[%clk 0:01:30.4]}
30... Rb8 {[%clk 0:01:50.4]} 31. Rc1 {[%clk 0:01:24]} 31... Rf7 {[%clk
0:01:49.9]} 32. Rxf7 {[%clk 0:01:23.7]} 32... Kxf7 {[%clk 0:01:50.8]} 33. a5
{[%clk 0:01:24.6]} 33... Ra8 {[%clk 0:01:49.5]} 34. Ra1 {[%clk 0:01:24.6]} 34...
Ra6 {[%clk 0:01:49.9]} 35. Kg2 {[%clk 0:01:24]} 35... Kf6 {[%clk 0:01:49.8]} 36.
g4 {[%clk 0:01:18.3]} 36... Kg5 {[%clk 0:01:28.5]} 37. Kg3 {[%clk 0:01:17.7]}
37... h5 {[%clk 0:01:29.2]} 38. gxh5 {[%clk 0:01:15.4]} 38... Kxh5 {[%clk
0:01:30.1]} 39. Kf4 {[%clk 0:01:06.1]} 39... Kg6 {[%clk 0:01:30.3]} 40. Ke5
{[%clk 0:01:06.9]} 40... Kf7 {[%clk 0:01:28.2]} 41. Rb1 {[%clk 0:01:05.5]} 41...
Rxa5 {[%clk 0:01:27.4]} 42. Rb7+ {[%clk 0:01:05.2]} 42... Kg6 {[%clk 0:01:26.7]}
43. Kxe6 {[%clk 0:01:04.1]} 43... Kg5 {[%clk 0:01:23.5]} 44. Rg7+ {[%clk
0:01:01.2]} 44... Kh4 {[%clk 0:01:23.5]} 45. Ke5 {[%clk 0:00:58.6]} 45... Kh3
{[%clk 0:01:22.8]} 46. Rd7 {[%clk 0:00:53.9]} 1-0

[Event "Early-Titled-Tuesday-Blitz-January-30-2024"]
[Site "Chess.com"]
[Date "2024.01.30"]
[Round "2"]
[White "aksuliini1"]
[Black "MITerryble"]
[Result "0-1"]
[WhiteElo "2526"]
[BlackElo "2981"]
[TimeControl "180+1"]
[EndTime "8:17:45 PST"]
[Termination "MITerryble won by resignation"]

1. e4 {[%clk 0:03:00.9]} 1... e6 {[%clk 0:02:55.4]} 2. d4 {[%clk 0:03:00.1]}
2... d5 {[%clk 0:02:55.8]} 3. exd5 {[%clk 0:03:01]} 3... exd5 {[%clk 0:02:56]}
4. h3 {[%clk 0:03:01.8]} 4... Nc6 {[%clk 0:02:56.1]} 5. Nf3 {[%clk 0:03:02.4]}
5... Nf6 {[%clk 0:02:53.9]} 6. c4 {[%clk 0:03:00.6]} 6... Bb4+ {[%clk
0:02:53.5]} 7. Bd2 {[%clk 0:02:43.4]} 7... Bxd2+ {[%clk 0:02:52.2]} 8. Nbxd2
{[%clk 0:02:41.6]} 8... O-O {[%clk 0:02:49.2]} 9. Be2 {[%clk 0:02:39.7]} 9...
dxc4 {[%clk 0:02:45.9]} 10. Nxc4 {[%clk 0:02:40.6]} 10... Be6 {[%clk 0:02:46]}
11. O-O {[%clk 0:02:38.9]} 11... Re8 {[%clk 0:02:39]} 12. Rc1 {[%clk 0:02:32.8]}
12... Nd5 {[%clk 0:02:25.9]} 13. Qd2 {[%clk 0:02:25.8]} 13... Qf6 {[%clk
0:02:22.8]} 14. Nfe5 {[%clk 0:02:10.9]} 14... Nxe5 {[%clk 0:02:19.9]} 15. Nxe5
{[%clk 0:02:09.4]} 15... Nf4 {[%clk 0:02:18.8]} 16. Bf3 {[%clk 0:02:06.5]} 16...
c6 {[%clk 0:01:59.9]} 17. Rfe1 {[%clk 0:01:54.3]} 17... Qg5 {[%clk 0:01:47.5]}
18. Kh2 {[%clk 0:00:59.6]} 18... Nxh3 {[%clk 0:01:47.2]} 19. Qxg5 {[%clk
0:00:59.3]} 19... Nxg5 {[%clk 0:01:48.1]} 20. a3 {[%clk 0:00:56]} 20... f6
{[%clk 0:01:45]} 21. Nd3 {[%clk 0:00:56]} 21... Nxf3+ {[%clk 0:01:44.6]} 22.
gxf3 {[%clk 0:00:56.9]} 22... Rad8 {[%clk 0:01:34.2]} 23. Nc5 {[%clk 0:00:55.3]}
23... Bc8 {[%clk 0:01:34.5]} 24. Rcd1 {[%clk 0:00:48]} 24... Rxe1 {[%clk
0:01:33.2]} 25. Rxe1 {[%clk 0:00:48.9]} 25... Kf7 {[%clk 0:01:33.8]} 26. Rd1
{[%clk 0:00:44.3]} 26... Rd5 {[%clk 0:01:27.5]} 27. Kg3 {[%clk 0:00:41.3]} 27...
b6 {[%clk 0:01:18.5]} 28. Ne4 {[%clk 0:00:40.9]} 28... c5 {[%clk 0:01:16.7]} 29.
Nc3 {[%clk 0:00:35.2]} 29... Rxd4 {[%clk 0:01:14.9]} 30. Rxd4 {[%clk 0:00:35.8]}
30... cxd4 {[%clk 0:01:15.6]} 31. Nb5 {[%clk 0:00:36.4]} 31... d3 {[%clk
0:01:16.1]} 32. Kf4 {[%clk 0:00:34.6]} 32... d2 {[%clk 0:01:16.1]} 33. Nc3
{[%clk 0:00:34.9]} 33... h5 {[%clk 0:01:08.2]} 34. Ke3 {[%clk 0:00:33.6]} 34...
h4 {[%clk 0:01:08.8]} 35. Kxd2 {[%clk 0:00:32.7]} 35... h3 {[%clk 0:01:07.2]}
36. Ne4 {[%clk 0:00:31.6]} 36... h2 {[%clk 0:01:07.3]} 37. Ng3 {[%clk
0:00:31.8]} 37... Bh3 {[%clk 0:01:07.9]} 38. Nf1 {[%clk 0:00:31.3]} 38... Bxf1
{[%clk 0:01:07.9]} 0-1

[Event "Early-Titled-Tuesday-Blitz-January-30-2024"]
[Site "Chess.com"]
[Date "2024.01.30"]
[Round "2"]
[White "gshwbedhkhd"]
[Black "chito89"]
[Result "0-1"]
[WhiteElo "2587"]
[BlackElo "2891"]
[TimeControl "180+1"]
[EndTime "8:17:52 PST"]
[Termination "chito89 won by resignation"]

1. e4 {[%clk 0:03:00.9]} 1... Nc6 {[%clk 0:02:57.9]} 2. Nf3 {[%clk 0:02:58.9]}
2... d6 {[%clk 0:02:55.6]} 3. h3 {[%clk 0:02:55.7]} 3... Nf6 {[%clk 0:02:55.8]}
4. Nc3 {[%clk 0:02:55.4]} 4... e5 {[%clk 0:02:54]} 5. d4 {[%clk 0:02:54.5]} 5...
exd4 {[%clk 0:02:53.8]} 6. Nxd4 {[%clk 0:02:55.4]} 6... g6 {[%clk 0:02:53.3]} 7.
Be3 {[%clk 0:02:51.3]} 7... Bg7 {[%clk 0:02:51.8]} 8. Qd2 {[%clk 0:02:48.2]}
8... O-O {[%clk 0:02:49.1]} 9. O-O-O {[%clk 0:02:48]} 9... Re8 {[%clk
0:02:48.7]} 10. f3 {[%clk 0:02:47.3]} 10... Nxd4 {[%clk 0:02:48.8]} 11. Bxd4
{[%clk 0:02:47]} 11... Be6 {[%clk 0:02:49.7]} 12. g4 {[%clk 0:02:44.6]} 12... c5
{[%clk 0:02:49.4]} 13. Bf2 {[%clk 0:02:39.5]} 13... Qa5 {[%clk 0:02:49.7]} 14.
Kb1 {[%clk 0:02:33.1]} 14... Kh8 {[%clk 0:02:25.8]} 15. h4 {[%clk 0:02:29.4]}
15... b5 {[%clk 0:02:22.8]} 16. h5 {[%clk 0:02:25.3]} 16... b4 {[%clk
0:02:11.7]} 17. Nd5 {[%clk 0:02:23]} 17... Bxd5 {[%clk 0:02:08.3]} 18. exd5
{[%clk 0:02:23.9]} 18... Kg8 {[%clk 0:02:07.5]} 19. hxg6 {[%clk 0:02:17.3]}
19... hxg6 {[%clk 0:02:08.4]} 20. Bc4 {[%clk 0:02:15.2]} 20... Nd7 {[%clk
0:01:58]} 21. f4 {[%clk 0:01:55]} 21... Nb6 {[%clk 0:01:50.9]} 22. Bf1 {[%clk
0:01:42.5]} 22... Na4 {[%clk 0:01:33.2]} 23. f5 {[%clk 0:01:37.4]} 23... Bxb2
{[%clk 0:00:54.7]} 24. Bc4 {[%clk 0:01:20.5]} 24... Bg7 {[%clk 0:00:54.4]} 25.
c3 {[%clk 0:00:49]} 25... Nxc3+ {[%clk 0:00:50.3]} 26. Kc1 {[%clk 0:00:47.6]}
26... Qa3+ {[%clk 0:00:45.4]} 27. Kc2 {[%clk 0:00:47.9]} 27... Ne4 {[%clk
0:00:27]} 0-1

[Event "Early-Titled-Tuesday-Blitz-January-30-2024"]
[Site "Chess.com"]
[Date "2024.01.30"]
[Round "2"]
[White "aghasiyevkamal"]
[Black "simonachess"]
[Result "1-0"]
[WhiteElo "2590"]
[BlackElo "2361"]
[TimeControl "180+1"]
[EndTime "8:17:56 PST"]
[Termination "aghasiyevkamal won on time"]

1. d4 {[%clk 0:03:00]} 1... Nf6 {[%clk 0:02:58.9]} 2. c4 {[%clk 0:03:00.3]} 2...
e6 {[%clk 0:02:59]} 3. Nc3 {[%clk 0:02:57.3]} 3... Bb4 {[%clk 0:02:58.7]} 4. e3
{[%clk 0:02:57.4]} 4... c5 {[%clk 0:02:58.9]} 5. Bd3 {[%clk 0:02:54.9]} 5... O-O
{[%clk 0:02:57.5]} 6. Nf3 {[%clk 0:02:53.6]} 6... d6 {[%clk 0:02:55.7]} 7. O-O
{[%clk 0:02:53.3]} 7... Bxc3 {[%clk 0:02:56]} 8. bxc3 {[%clk 0:02:53.5]} 8...
Nbd7 {[%clk 0:02:55.1]} 9. e4 {[%clk 0:02:47.3]} 9... e5 {[%clk 0:02:55]} 10. d5
{[%clk 0:02:44.6]} 10... h6 {[%clk 0:02:36]} 11. h3 {[%clk 0:02:40.4]} 11... b6
{[%clk 0:02:32.2]} 12. Kh2 {[%clk 0:02:40.7]} 12... Nh7 {[%clk 0:02:30.2]} 13.
g4 {[%clk 0:02:40.5]} 13... Rb8 {[%clk 0:02:21.5]} 14. Rg1 {[%clk 0:02:34.1]}
14... a6 {[%clk 0:01:04.2]} 15. g5 {[%clk 0:02:33.1]} 15... h5 {[%clk
0:00:28.6]} 16. Nh4 {[%clk 0:02:18.6]} 16... g6 {[%clk 0:00:27.3]} 17. Be3
{[%clk 0:02:18.1]} 17... b5 {[%clk 0:00:26.7]} 18. cxb5 {[%clk 0:02:16.3]} 18...
axb5 {[%clk 0:00:27.6]} 19. Be2 {[%clk 0:02:15.5]} 19... c4 {[%clk 0:00:17.9]}
20. Bxh5 {[%clk 0:02:14.4]} 20... Qe8 {[%clk 0:00:11.7]} 21. Bg4 {[%clk
0:02:05.4]} 21... Nc5 {[%clk 0:00:12.1]} 22. Bxc8 {[%clk 0:02:03.5]} 22... Rxc8
{[%clk 0:00:11.1]} 23. Bxc5 {[%clk 0:02:03.3]} 23... Rxc5 {[%clk 0:00:11.9]} 24.
Qd2 {[%clk 0:01:52.5]} 24... Qe7 {[%clk 0:00:12.5]} 25. Rg4 {[%clk 0:01:47.1]}
25... Ra8 {[%clk 0:00:12.4]} 26. Nf3 {[%clk 0:01:46.5]} 26... Ra3 {[%clk
0:00:10.7]} 27. h4 {[%clk 0:01:46]} 27... Qb7 {[%clk 0:00:09.2]} 28. Rb1 {[%clk
0:01:43.8]} 28... Rc7 {[%clk 0:00:08.7]} 29. h5 {[%clk 0:01:43.1]} 29... Qa6
{[%clk 0:00:07.5]} 30. Rb2 {[%clk 0:01:41.5]} 30... b4 {[%clk 0:00:06.4]} 31.
Rxb4 {[%clk 0:01:41.5]} 31... Rxa2 {[%clk 0:00:07]} 32. Qe3 {[%clk 0:01:40.8]}
32... Ra3 {[%clk 0:00:05.9]} 33. Rb6 {[%clk 0:01:37.1]} 33... Qa5 {[%clk
0:00:04.3]} 34. hxg6 {[%clk 0:01:35.3]} 34... fxg6 {[%clk 0:00:04.4]} 35. Rxd6
{[%clk 0:01:35.2]} 35... Qxc3 {[%clk 0:00:04.1]} 36. Rxg6+ {[%clk 0:01:32.6]}
36... Kf7 {[%clk 0:00:04.4]} 37. Qxc3 {[%clk 0:01:32.8]} 37... Rxc3 {[%clk
0:00:04.3]} 38. Nxe5+ {[%clk 0:01:33.5]} 38... Kf8 {[%clk 0:00:02.7]} 39. Rf4+
{[%clk 0:01:32.4]} 39... Ke8 {[%clk 0:00:01.9]} 40. d6 {[%clk 0:01:29.8]} 1-0